bitfinex-derivatives/quotes_ETHF0:USTF0_20260125
["timestamp","ask_amount","ask_price","bid_price","bid_amount"]
[1769309841125,0.77906826,2955.3,2954.1,0.15094155]
[1769309841322,4.32245596,2955.2,2954.1,0.15094155]
[1769309841522,0.77906826,2955.3,2954.1,0.15094155]
[1769309841719,4.32246045,2955.2,2954.1,0.15094155]
[1769309841922,0.77906826,2955.3,2954.1,0.15094155]
[1769309842130,4.32245921,2955.2,2954.1,0.15094155]
[1769309842330,0.77906826,2955.3,2954.1,0.15094155]
[1769309842633,4.32247444,2955.2,2954.1,0.15094155]
[1769309842818,0.77906826,2955.3,2954.1,0.15094155]
[1769309843023,4.32257606,2955.2,2954.1,0.15094155]
[1769309843225,0.77906826,2955.3,2954.1,0.15094155]
[1769309843419,4.32254941,2955.2,2954.1,0.15094155]
[1769309843631,0.77906826,2955.3,2954.1,0.15094155]
[1769309843829,4.32255026,2955.2,2954.1,0.15094155]
[1769309844130,0.77906826,2955.3,2954.1,0.15094155]
[1769309844325,4.32258652,2955.2,2954.1,0.15094155]
[1769309844524,0.77906826,2955.3,2954.1,0.15094155]
[1769309844725,4.32254777,2955.2,2954.1,0.15094155]
[1769309844928,0.77906826,2955.3,2954.1,0.15094155]
[1769309845130,4.32254777,2955.2,2954.1,0.15094155]
[1769309845329,0.77906826,2955.3,2954.1,0.15094155]
[1769309845530,4.32257121,2955.2,2954.1,0.15094155]
[1769309845735,0.77906826,2955.3,2954.1,0.15094155]
[1769309845930,4.32257121,2955.2,2954.1,0.15094155]
[1769309846132,0.77906826,2955.3,2954.1,0.15094155]
[1769309846432,4.32257573,2955.2,2954.1,0.15094155]
[1769309846728,0.77906826,2955.3,2954.1,0.15094155]
[1769309846933,4.32259189,2955.2,2954.1,0.15094155]
[1769309847133,0.77906826,2955.3,2954.1,0.15094155]
[1769309847333,4.32259619,2955.2,2954.1,0.15094155]
[1769309847631,0.77906826,2955.3,2954.1,0.15094155]
[1769309847825,4.3226192,2955.2,2954.1,0.15094155]
[1769309848026,0.77906826,2955.3,2954.1,0.15094155]
[1769309848325,4.32260812,2955.2,2954.1,0.15094155]
[1769309848522,0.77906826,2955.3,2954.1,0.15094155]
[1769309848724,4.32263994,2955.2,2954.1,0.15094155]
[1769309848926,0.77906826,2955.3,2954.1,0.15094155]
[1769309849126,4.32263994,2955.2,2954.1,0.15094155]
[1769309849332,0.77906826,2955.3,2954.1,0.15094155]
[1769309849531,4.32268013,2955.2,2954.1,0.15094155]
[1769309849728,0.77906826,2955.3,2954.1,0.15094155]
[1769309849928,4.32268013,2955.2,2954.1,0.15094155]
[1769309850136,0.77906826,2955.3,2954.1,0.15094155]
[1769309850334,4.3226837,2955.2,2954.1,0.15094155]
[1769309850531,0.77906826,2955.3,2954.1,0.15094155]
[1769309850726,4.3226837,2955.2,2954.1,0.15094155]
[1769309850932,0.77906826,2955.3,2954.1,0.15094155]
[1769309851131,4.3226837,2955.2,2954.1,0.15094155]
[1769309851333,0.77906826,2955.3,2954.1,0.15094155]
[1769309851532,4.32273665,2955.2,2954.1,0.15094155]
[1769309851730,0.77906826,2955.3,2954.1,0.15094155]
[1769309851927,4.32273615,2955.2,2954.1,0.15094155]
[1769309852127,0.77906826,2955.3,2954.1,0.15094155]
[1769309852329,4.32274188,2955.2,2954.1,0.15094155]
[1769309852539,0.77906826,2955.3,2954.1,0.15094155]
[1769309852836,4.32274188,2955.2,2954.1,0.15094155]
[1769309853039,0.77906826,2955.3,2954.1,0.15094155]
[1769309853228,4.3227311,2955.2,2954.1,0.15094155]
[1769309853430,0.77906826,2955.3,2954.1,0.15094155]
[1769309853632,4.32273015,2955.2,2954.1,0.15094155]
[1769309853832,0.77906826,2955.3,2954.1,0.15094155]
[1769309854032,4.3227326,2955.2,2954.1,0.15094155]
[1769309854232,0.77906826,2955.3,2954.1,0.15094155]
[1769309854434,4.3227401,2955.2,2954.1,0.15094155]
[1769309854635,0.77906826,2955.3,2954.1,0.15094155]
[1769309854934,4.3227401,2955.2,2954.1,0.15094155]
[1769309855235,0.77906826,2955.3,2954.1,0.15094155]
[1769309855435,4.32202017,2955.2,2954.1,0.15094155]
[1769309855735,0.77906826,2955.3,2954.1,0.15094155]
[1769309855940,4.32201933,2955.2,2954.1,0.15094155]
[1769309856129,0.77906826,2955.3,2954.1,0.15094155]
[1769309856333,4.32202553,2955.2,2954.1,0.15094155]
[1769309856534,0.77906826,2955.3,2954.1,0.15094155]
[1769309856731,4.32202469,2955.2,2954.1,0.15094155]
[1769309856934,0.77906826,2955.3,2954.1,0.15094155]
[1769309857131,4.32202407,2955.2,2954.1,0.15094155]
[1769309857333,0.77906826,2955.3,2954.1,0.15094155]
[1769309857536,4.32203031,2955.2,2954.1,0.15094155]
[1769309857739,0.77906826,2955.3,2954.1,0.15094155]
[1769309857939,4.32198676,2955.2,2954.1,0.15094155]
[1769309858149,0.77906826,2955.3,2954.1,0.15094155]
[1769309858351,4.32199329,2955.2,2954.1,0.15094155]
[1769309858554,0.77906826,2955.3,2954.1,0.15094155]
[1769309858754,4.32199304,2955.2,2954.1,0.15094155]
[1769309858951,0.77906826,2955.3,2954.1,0.15094155]
[1769309859150,4.32199329,2955.2,2954.1,0.15094155]
[1769309859451,0.77906826,2955.3,2954.1,0.15094155]
[1769309859651,4.32222394,2955.2,2954.1,0.15094155]
[1769309859951,0.77906826,2955.3,2954.1,0.15094155]
[1769309860250,4.32220681,2955.2,2954.1,0.15094155]
[1769309860446,0.77906826,2955.3,2954.1,0.15094155]
[1769309860642,4.32218805,2955.2,2954.1,0.15094155]
[1769309860847,0.77906826,2955.3,2954.1,0.15094155]
[1769309861147,4.32217733,2955.2,2954.1,0.15094155]
[1769309861347,0.77906826,2955.3,2954.1,0.15094155]
[1769309861559,4.32218801,2955.2,2954.1,0.15094155]
[1769309861752,0.77906826,2955.3,2954.1,0.15094155]
[1769309861952,4.32218801,2955.2,2954.1,0.15094155]
[1769309862153,0.77906826,2955.3,2954.1,0.15094155]
[1769309862346,4.32219986,2955.2,2954.1,0.15094155]
[1769309862548,0.77906826,2955.3,2954.1,0.15094155]
[1769309862748,4.32219986,2955.2,2954.1,0.15094155]
[1769309862949,0.77906826,2955.3,2954.1,0.15094155]
[1769309863147,4.32219896,2955.2,2954.1,0.15094155]
[1769309863355,0.77906826,2955.3,2954.1,0.15094155]
[1769309863550,4.32221357,2955.2,2954.1,0.15094155]
[1769309863758,0.77906826,2955.3,2954.1,0.15094155]
[1769309863953,4.32221441,2955.2,2954.1,0.15094155]
[1769309864148,0.77906826,2955.3,2954.1,0.15094155]
[1769309864348,4.32223702,2955.2,2954.1,0.15094155]
[1769309864553,0.77906826,2955.3,2954.1,0.15094155]
[1769309864754,4.32223587,2955.2,2954.1,0.15094155]
[1769309865055,0.77906826,2955.3,2954.1,0.15094155]
[1769309865355,4.32223638,2955.2,2954.1,0.15094155]
[1769309865552,0.77906826,2955.3,2954.1,0.15094155]
[1769309865757,4.32230513,2955.2,2954.1,0.15094155]
[1769309865956,0.77906826,2955.3,2954.1,0.15094155]
[1769309866156,4.32230513,2955.2,2954.1,0.15094155]
[1769309866458,0.77906826,2955.3,2954.1,0.15094155]
[1769309866649,4.32307155,2955.2,2954.1,0.15094155]
[1769309866850,0.77906826,2955.3,2954.1,0.15094155]
[1769309867055,4.32307436,2955.2,2954.1,0.15094155]
[1769309867257,0.77906826,2955.3,2954.1,0.15094155]
[1769309867457,4.32317167,2955.2,2954.1,0.15094155]
[1769309867657,0.77906826,2955.3,2954.1,0.15094155]
[1769309867858,4.32317248,2955.2,2954.1,0.15094155]
[1769309868158,0.77906826,2955.3,2954.1,0.15094155]
[1769309868457,4.32317688,2955.2,2954.1,0.15094155]
[1769309868653,0.77906826,2955.3,2954.1,0.15094155]
[1769309868855,4.32319163,2955.2,2954.1,0.15094155]
[1769309869157,0.77906826,2955.3,2954.1,0.15094155]
[1769309869345,4.32319943,2955.2,2954.1,0.15094155]
[1769309869546,0.77906826,2955.3,2954.1,0.15094155]
[1769309869751,4.32320287,2955.2,2954.1,0.15094155]
[1769309869952,0.77906826,2955.3,2954.1,0.15094155]
[1769309870157,4.3232027,2955.2,2954.1,0.15094155]
[1769309870371,0.77906826,2955.3,2954.1,0.15094155]
[1769309870656,4.32321879,2955.2,2954.1,0.15094155]
[1769309870854,0.77906826,2955.3,2954.1,0.15094155]
[1769309871055,4.32321896,2955.2,2954.1,0.15094155]
[1769309871259,0.77906826,2955.3,2954.1,0.15094155]
[1769309871556,4.32321911,2955.2,2954.1,0.15094155]
[1769309871756,0.77906826,2955.3,2954.1,0.15094155]
[1769309871962,4.32321935,2955.2,2954.1,0.15094155]
[1769309872155,0.77906826,2955.3,2954.1,0.15094155]
[1769309872455,4.32321951,2955.2,2954.1,0.15094155]
[1769309872654,0.77906826,2955.3,2954.1,0.15094155]
[1769309872954,4.32321951,2955.2,2954.1,0.15094155]
[1769309873154,0.77906826,2955.3,2954.1,0.15094155]
[1769309873353,4.32322009,2955.2,2954.1,0.15094155]
[1769309873556,0.77906826,2955.3,2954.1,0.15094155]
[1769309873760,4.32322009,2955.2,2954.1,0.15094155]
[1769309874055,0.77906826,2955.3,2954.1,0.15094155]
[1769309874252,4.32322009,2955.2,2954.1,0.15094155]
[1769309874457,0.77906826,2955.3,2954.1,0.15094155]
[1769309874655,4.32322041,2955.2,2954.1,0.15094155]
[1769309874851,0.77906826,2955.3,2954.1,0.15094155]
[1769309875056,4.32322041,2955.2,2954.1,0.15094155]
[1769309875251,0.77906826,2955.3,2954.1,0.15094155]
[1769309875458,4.32321888,2955.2,2954.1,0.15094155]
[1769309875658,0.77906826,2955.3,2954.1,0.15094155]
[1769309875852,4.32321982,2955.2,2954.1,0.15094155]
[1769309876058,0.77906826,2955.3,2954.1,0.15094155]
[1769309876257,4.32321923,2955.2,2954.1,0.15094155]
[1769309876467,0.77906826,2955.3,2954.1,0.15094155]
[1769309876662,4.3233704,2955.2,2954.1,0.15094155]
[1769309876862,0.77906826,2955.3,2954.1,0.15094155]
[1769309877064,4.32336956,2955.2,2954.1,0.15094155]
[1769309877263,0.77906826,2955.3,2954.1,0.15094155]
[1769309877463,4.32336982,2955.2,2954.1,0.15094155]
[1769309877663,0.77906826,2955.3,2954.1,0.15094155]
[1769309877868,4.32336982,2955.2,2954.1,0.15094155]
[1769309878169,0.77906826,2955.3,2954.1,0.15094155]
[1769309878462,4.32348008,2955.2,2954.1,0.15094155]
[1769309878665,0.77906826,2955.3,2954.1,0.15094155]
[1769309878853,4.32348042,2955.2,2954.1,0.15094155]
[1769309879154,0.77906826,2955.3,2954.1,0.15094155]
[1769309879457,4.32348491,2955.2,2954.1,0.15094155]
[1769309879658,0.77906826,2955.3,2954.1,0.15094155]
[1769309879858,4.32348576,2955.2,2954.1,0.15094155]
[1769309880057,0.77906826,2955.3,2954.1,0.15094155]
[1769309880256,4.32348461,2955.2,2954.1,0.15094155]
[1769309880459,0.77906826,2955.3,2954.1,0.15094155]
[1769309880659,4.32358125,2955.2,2954.1,0.15094155]
[1769309880868,0.77906826,2955.3,2954.1,0.15094155]
[1769309881062,4.32379481,2955.2,2954.1,0.15094155]
[1769309881372,0.77906826,2955.3,2954.1,0.15094155]
[1769309881668,4.32397941,2955.2,2954.1,0.15094155]
[1769309881868,0.77906826,2955.3,2954.1,0.15094155]
[1769309882065,4.3239756,2955.2,2954.1,0.15094155]
[1769309882272,0.77906826,2955.3,2954.1,0.15094155]
[1769309882463,4.32397465,2955.2,2954.1,0.15094155]
[1769309882658,0.77906826,2955.3,2954.1,0.15094155]
[1769309882867,4.32397548,2955.2,2954.1,0.15094155]
[1769309883165,0.77906826,2955.3,2954.1,0.15094155]
[1769309883365,4.32398099,2955.2,2954.1,0.15094155]
[1769309883565,0.77906826,2955.3,2954.1,0.15094155]
[1769309883762,4.32398225,2955.2,2954.1,0.15094155]
[1769309883958,0.77906826,2955.3,2954.1,0.15094155]
[1769309884164,4.32398208,2955.2,2954.1,0.15094155]
[1769309884465,0.77906826,2955.3,2954.1,0.15094155]
[1769309884658,4.32398099,2955.2,2954.1,0.15094155]
[1769309884864,0.77906826,2955.3,2954.1,0.15094155]
[1769309885070,4.32398167,2955.2,2954.1,0.15094155]
[1769309885369,0.77906826,2955.3,2954.1,0.15094155]
[1769309885570,4.32245396,2955.2,2954.1,0.15094155]
[1769309885771,0.77906826,2955.3,2954.1,0.15094155]
[1769309885968,4.32245754,2955.2,2954.1,0.15094155]
[1769309886168,0.77906826,2955.3,2954.1,0.15094155]
[1769309886369,4.32245806,2955.2,2954.1,0.15094155]
[1769309886568,0.77906826,2955.3,2954.1,0.15094155]
[1769309886870,4.32245727,2955.2,2954.1,0.15094155]
[1769309887068,0.77906826,2955.3,2954.1,0.15094155]
[1769309887269,4.32245786,2955.2,2954.1,0.15094155]
[1769309887474,0.77906826,2955.3,2954.1,0.15094155]
[1769309887770,4.32246417,2955.2,2954.1,0.15094155]
[1769309887966,0.77906826,2955.3,2954.1,0.15094155]
[1769309888167,4.32255526,2955.2,2954.1,0.15094155]
[1769309888368,0.77906826,2955.3,2954.1,0.15094155]
[1769309888572,4.32281679,2955.2,2954.1,0.15094155]
[1769309888772,0.77906826,2955.3,2954.1,0.15094155]
[1769309888974,4.32281592,2955.2,2954.1,0.15094155]
[1769309889172,0.77906826,2955.3,2954.1,0.15094155]
[1769309889362,4.32281674,2955.2,2954.1,0.15094155]
[1769309889567,0.77906826,2955.3,2954.1,0.15094155]
[1769309889766,4.32281607,2955.2,2954.1,0.15094155]
[1769309889963,0.77906826,2955.3,2954.1,0.15094155]
[1769309890161,4.32281692,2955.2,2954.1,0.15094155]
[1769309890368,0.77906826,2955.3,2954.1,0.15094155]
[1769309890666,4.3228117,2955.2,2954.1,0.15094155]
[1769309890973,1.987,2955.8,2954.1,0.15094155]
[1769309891273,4.32281779,2955.7,2954.1,0.15094155]
[1769309891470,4.32281779,2955.6,2954.1,0.15094155]
[1769309891676,4.32281779,2955.5,2954.1,0.15094155]
[1769309891871,4.32281779,2955.4,2954.1,0.15094155]
[1769309892072,4.32281779,2955.3,2954.1,0.15094155]
[1769309892274,4.32281779,2955.2,2954.1,0.15094155]
[1769309892476,1.987,2955.8,2954.1,0.15094155]
[1769309892667,4.32281445,2955.7,2954.1,0.15094155]
[1769309892868,4.32281445,2955.6,2954.1,0.15094155]
[1769309893069,4.32281445,2955.5,2954.1,0.15094155]
[1769309893270,4.32281445,2955.4,2954.1,0.15094155]
[1769309893470,4.32281445,2955.3,2954.1,0.15094155]
[1769309893671,4.32281445,2955.2,2954.1,0.15094155]
[1769309893867,1.987,2955.8,2954.1,0.15094155]
[1769309894071,4.32282216,2955.7,2954.1,0.15094155]
[1769309894271,4.32282216,2955.6,2954.1,0.15094155]
[1769309894477,4.32282216,2955.5,2954.1,0.15094155]
[1769309894673,4.32282216,2955.4,2954.1,0.15094155]
[1769309894871,4.32282216,2955.3,2954.1,0.15094155]
[1769309895067,4.32282216,2955.2,2954.1,0.15094155]
[1769309895278,1.987,2955.8,2954.1,0.15094155]
[1769309895476,4.32254822,2955.7,2954.1,0.15094155]
[1769309895675,4.32254822,2955.6,2954.1,0.15094155]
[1769309895873,4.32254822,2955.5,2954.1,0.15094155]
[1769309896072,4.32254822,2955.4,2954.1,0.15094155]
[1769309896276,4.32254822,2955.3,2954.1,0.15094155]
[1769309896571,4.32254822,2955.2,2954.1,0.15094155]
[1769309896767,1.987,2955.8,2954.1,0.15094155]
[1769309896972,4.32247796,2955.7,2954.1,0.15094155]
[1769309897168,4.32247796,2955.6,2954.1,0.15094155]
[1769309897373,4.32247796,2955.5,2954.1,0.15094155]
[1769309897673,4.32247796,2955.4,2954.1,0.15094155]
[1769309897868,4.32247796,2955.3,2954.1,0.15094155]
[1769309898071,4.32247796,2955.2,2954.1,0.15094155]
[1769309898280,1.987,2955.8,2954.1,0.15094155]
[1769309898579,4.32249503,2955.7,2954.1,0.15094155]
[1769309898779,4.32249503,2955.6,2954.1,0.15094155]
[1769309898972,1.987,2955.8,2954.1,0.15094155]
[1769309898973,4.32249503,2955.5,2954.1,0.15094155]
[1769309899173,4.32249503,2955.4,2954.1,0.15094155]
[1769309899376,4.32249503,2955.3,2954.1,0.15094155]
[1769309899573,4.32249503,2955.2,2954.1,0.15094155]
[1769309899777,1.987,2955.8,2954.1,0.15094155]
[1769309899976,4.32248979,2955.7,2954.1,0.15094155]
[1769309900178,4.32248979,2955.6,2954.1,0.15094155]
[1769309900375,1.987,2955.8,2954.1,0.15094155]
[1769309900376,4.32248979,2955.5,2954.1,0.15094155]
[1769309900681,4.32248979,2955.4,2954.1,0.15094155]
[1769309900870,4.32248979,2955.3,2954.1,0.15094155]
[1769309901070,4.32248979,2955.2,2954.1,0.15094155]
[1769309901274,1.987,2955.8,2954.1,0.15094155]
[1769309901475,4.32289013,2955.7,2954.1,0.15094155]
[1769309901785,4.32289013,2955.6,2954.1,0.15094155]
[1769309902079,4.32289013,2955.5,2954.1,0.15094155]
[1769309902280,4.32289013,2955.4,2954.1,0.15094155]
[1769309902480,4.32289013,2955.3,2954.1,0.15094155]
[1769309902672,4.32289013,2955.2,2954.1,0.15094155]
[1769309902874,1.987,2955.8,2954.1,0.15094155]
[1769309903072,4.32287993,2955.7,2954.1,0.15094155]
[1769309903280,4.32287993,2955.6,2954.1,0.15094155]
[1769309903481,4.32287993,2955.5,2954.1,0.15094155]
[1769309903779,4.32287993,2955.4,2954.1,0.15094155]
[1769309903982,4.32287993,2955.3,2954.1,0.15094155]
[1769309904179,4.32287993,2955.2,2954.1,0.15094155]
[1769309904375,1.987,2955.8,2954.1,0.15094155]
[1769309904575,4.32285929,2955.7,2954.1,0.15094155]
[1769309904775,4.32285929,2955.6,2954.1,0.15094155]
[1769309904980,4.32285929,2955.5,2954.1,0.15094155]
[1769309905182,4.32285929,2955.4,2954.1,0.15094155]
[1769309905377,4.32285929,2955.3,2954.1,0.15094155]
[1769309905670,4.32285929,2955.2,2954.1,0.15094155]
[1769309905873,1.987,2955.8,2954.1,0.15094155]
[1769309906084,4.32286002,2955.7,2954.1,0.15094155]
[1769309906278,4.32286002,2955.6,2954.1,0.15094155]
[1769309906582,4.32286002,2955.5,2954.1,0.15094155]
[1769309906782,1.987,2955.8,2954.1,0.15094155]
[1769309906783,4.32286002,2955.4,2954.1,0.15094155]
[1769309906982,4.32286002,2955.3,2954.1,0.15094155]
[1769309907178,4.32286002,2955.2,2954.1,0.15094155]
[1769309907375,1.987,2955.8,2954.1,0.15094155]
[1769309907575,4.32286536,2955.7,2954.1,0.15094155]
[1769309907872,4.32286536,2955.6,2954.1,0.15094155]
[1769309908077,4.32286536,2955.5,2954.1,0.15094155]
[1769309908279,4.32286536,2955.4,2954.1,0.15094155]
[1769309908476,4.32286536,2955.3,2954.1,0.15094155]
[1769309908672,4.32286536,2955.2,2954.1,0.15094155]
[1769309908871,1.987,2955.8,2954.1,0.15094155]
[1769309909080,4.32287068,2955.7,2954.1,0.15094155]
[1769309909281,4.32287068,2955.6,2954.1,0.15094155]
[1769309909482,4.32287068,2955.5,2954.1,0.15094155]
[1769309909680,4.32287068,2955.4,2954.1,0.15094155]
[1769309909880,4.32287068,2955.3,2954.1,0.15094155]
[1769309910080,4.32287068,2955.2,2954.1,0.15094155]
[1769309910380,1.987,2955.8,2954.1,0.15094155]
[1769309910584,4.32288504,2955.7,2954.1,0.15094155]
[1769309910782,4.32288504,2955.6,2954.1,0.15094155]
[1769309910983,4.32288504,2955.5,2954.1,0.15094155]
[1769309911188,4.32288504,2955.4,2954.1,0.15094155]
[1769309911479,4.32288504,2955.3,2954.1,0.15094155]
[1769309911685,4.32288504,2955.2,2954.1,0.15094155]
[1769309911886,1.987,2955.8,2954.1,0.15094155]
[1769309912082,4.322757,2955.7,2954.1,0.15094155]
[1769309912388,4.322757,2955.6,2954.1,0.15094155]
[1769309912590,4.322757,2955.5,2954.1,0.15094155]
[1769309912784,4.322757,2955.4,2954.1,0.15094155]
[1769309912984,4.322757,2955.3,2954.1,0.15094155]
[1769309913185,4.322757,2955.2,2954.1,0.15094155]
[1769309913387,1.987,2955.8,2954.1,0.15094155]
[1769309913582,4.32276692,2955.7,2954.1,0.15094155]
[1769309913782,4.32276692,2955.6,2954.1,0.15094155]
[1769309913984,4.32276692,2955.5,2954.1,0.15094155]
[1769309914184,4.32276692,2955.4,2954.1,0.15094155]
[1769309914380,4.32276692,2955.3,2954.1,0.15094155]
[1769309914585,4.32276692,2955.2,2954.1,0.15094155]
[1769309914791,1.987,2955.8,2954.1,0.15094155]
[1769309915093,4.32278095,2955.7,2954.1,0.15094155]
[1769309915285,4.32278095,2955.6,2954.1,0.15094155]
[1769309915481,4.32278095,2955.5,2954.1,0.15094155]
[1769309915691,4.32278095,2955.4,2954.1,0.15094155]
[1769309915890,4.32278095,2955.3,2954.1,0.15094155]
[1769309916090,4.32278095,2955.2,2954.1,0.15094155]
[1769309916291,1.987,2955.8,2954.1,0.15094155]
[1769309916589,4.32359792,2955.7,2954.1,0.15094155]
[1769309916781,4.32359792,2955.6,2954.1,0.15094155]
[1769309916981,4.32359792,2955.5,2954.1,0.15094155]
[1769309917190,4.32359792,2955.4,2954.1,0.15094155]
[1769309917392,4.32359792,2955.3,2954.1,0.15094155]
[1769309917593,4.32359792,2955.2,2954.1,0.15094155]
[1769309917795,1.987,2955.8,2954.1,0.15094155]
[1769309917986,4.3236077,2955.7,2954.1,0.15094155]
[1769309918288,4.3236077,2955.6,2954.1,0.15094155]
[1769309918485,4.3236077,2955.5,2954.1,0.15094155]
[1769309918685,4.3236077,2955.4,2954.1,0.15094155]
[1769309918881,4.3236077,2955.3,2954.1,0.15094155]
[1769309919085,4.3236077,2955.2,2954.1,0.15094155]
[1769309919286,1.987,2955.7,2954.1,0.15094155]
[1769309919493,4.32362453,2955.6,2954.1,0.15094155]
[1769309919693,4.32362453,2955.5,2954.1,0.15094155]
[1769309919885,4.32362453,2955.4,2954.1,0.15094155]
[1769309920081,4.32362453,2955.3,2954.1,0.15094155]
[1769309920283,4.32362453,2955.2,2954.1,0.15094155]
[1769309920486,1.987,2955.7,2954.1,0.15094155]
[1769309920686,4.32362505,2955.6,2954.1,0.15094155]
[1769309920887,4.32362505,2955.5,2954.1,0.15094155]
[1769309921081,4.32362505,2955.4,2954.1,0.15094155]
[1769309921290,4.32362505,2955.3,2954.1,0.15094155]
[1769309921591,4.32362505,2955.2,2954.1,0.15094155]
[1769309921893,1.987,2955.7,2954.1,0.15094155]
[1769309922192,4.32362752,2955.6,2954.1,0.15094155]
[1769309922392,4.32362752,2955.5,2954.1,0.15094155]
[1769309922593,4.32362752,2955.4,2954.1,0.15094155]
[1769309922893,4.32362752,2955.3,2954.1,0.15094155]
[1769309923193,4.32362752,2955.2,2954.1,0.15094155]
[1769309923397,1.987,2955.7,2954.1,0.15094155]
[1769309923597,4.3236384,2955.6,2954.1,0.15094155]
[1769309923894,4.3236384,2955.5,2954.1,0.15094155]
[1769309924095,4.3236384,2955.4,2954.1,0.15094155]
[1769309924296,4.3236384,2955.3,2954.1,0.15094155]
[1769309924489,4.3236384,2955.2,2954.1,0.15094155]
[1769309924685,1.987,2955.7,2954.1,0.15094155]
[1769309924884,4.32363669,2955.6,2954.1,0.15094155]
[1769309925090,4.32363669,2955.5,2954.1,0.15094155]
[1769309925290,4.32363669,2955.4,2954.1,0.15094155]
[1769309925590,4.32363669,2955.3,2954.1,0.15094155]
[1769309925790,4.32363669,2955.2,2954.1,0.15094155]
[1769309925991,1.987,2955.7,2954.1,0.15094155]
[1769309926191,4.32364817,2955.6,2954.1,0.15094155]
[1769309926392,4.32364817,2955.5,2954.1,0.15094155]
[1769309926591,4.32364817,2955.4,2954.1,0.15094155]
[1769309926792,4.32364817,2955.3,2954.1,0.15094155]
[1769309926994,4.32364817,2955.2,2954.1,0.15094155]
[1769309927197,1.987,2955.7,2954.1,0.15094155]
[1769309927399,4.3236919,2955.6,2954.1,0.15094155]
[1769309927698,4.3236919,2955.5,2954.1,0.15094155]
[1769309928000,4.3236919,2955.4,2954.1,0.15094155]
[1769309928195,4.3236919,2955.3,2954.1,0.15094155]
[1769309928497,4.3236919,2955.2,2954.1,0.15094155]
[1769309928794,1.987,2955.7,2954.1,0.15094155]
[1769309928997,4.32372372,2955.6,2954.1,0.15094155]
[1769309929197,4.32372372,2955.5,2954.1,0.15094155]
[1769309929496,4.32372372,2955.4,2954.1,0.15094155]
[1769309929798,4.32372372,2955.3,2954.1,0.15094155]
[1769309930097,4.32372372,2955.2,2954.1,0.15094155]
[1769309930299,1.987,2955.7,2954.1,0.15094155]
[1769309930492,4.32267484,2955.6,2954.1,0.15094155]
[1769309930692,4.32267484,2955.5,2954.1,0.15094155]
[1769309930892,4.32267484,2955.4,2954.1,0.15094155]
[1769309931094,4.32267484,2955.3,2954.1,0.15094155]
[1769309931290,4.32267484,2955.2,2954.1,0.15094155]
[1769309931493,1.987,2955.7,2954.1,0.15094155]
[1769309931694,4.32267799,2955.6,2954.1,0.15094155]
[1769309931895,4.32267799,2955.5,2954.1,0.15094155]
[1769309932103,4.32267799,2955.4,2954.1,0.15094155]
[1769309932300,4.32267799,2955.3,2954.1,0.15094155]
[1769309932601,4.32267799,2955.2,2954.1,0.15094155]
[1769309932802,1.987,2955.7,2954.1,0.15094155]
[1769309933004,4.32267216,2955.6,2954.1,0.15094155]
[1769309933203,5.10183585,2955.5,2954.1,0.15094155]
[1769309933395,4.32267216,2955.4,2954.1,0.15094155]
[1769309947421,4.32267216,2955.3,2954.1,0.15094155]
[1769309947611,4.32267216,2955.2,2954.1,0.15094155]
[1769309947815,1.987,2955.7,2954.1,0.15094155]
[1769309948015,4.32116463,2955.6,2954.1,0.15094155]
[1769309948218,4.32116463,2955.5,2954.1,0.15094155]
[1769309948418,4.32116463,2955.4,2954.1,0.15094155]
[1769309948618,4.32116463,2955.3,2954.1,0.15094155]
[1769309948818,4.32116463,2955.2,2954.1,0.15094155]
[1769309949022,1.987,2955.7,2954.1,0.15094155]
[1769309949319,4.3210266,2955.6,2954.1,0.15094155]
[1769309949523,1.987,2955.7,2954.1,0.15094155]
[1769309949524,4.3210266,2955.5,2954.1,0.15094155]
[1769309949821,4.3210266,2955.4,2954.1,0.15094155]
[1769309950022,4.3210266,2955.3,2954.1,0.15094155]
[1769309950321,4.3210266,2955.2,2954.1,0.15094155]
[1769309950520,1.987,2955.7,2954.1,0.15094155]
[1769309950722,4.32085371,2955.6,2954.1,0.15094155]
[1769309950924,0.77921364,2955.2,2954.1,0.15094155]
[1769309952524,1.987,2955.7,2954.1,0.15094155]
[1769309952724,0.77921364,2955.2,2954.1,0.15094155]
[1769309996954,0.77921364,2955.4,2954.1,0.15094155]
[1769309997158,4.31630276,2955.3,2954.1,0.15094155]
[1769309997362,4.31630276,2955.2,2954.1,0.15094155]
[1769309997558,0.77921364,2955.4,2954.1,0.15094155]
[1769309997763,4.31630173,2955.3,2954.1,0.15094155]
[1769309997964,4.31630173,2955.2,2954.1,0.15094155]
[1769309998163,0.77921364,2955.4,2954.1,0.15094155]
[1769309998362,4.31630003,2955.3,2954.1,0.15094155]
[1769309998563,4.31630003,2955.2,2954.1,0.15094155]
[1769309998766,0.77921364,2955.4,2954.1,0.15094155]
[1769309998961,4.31628635,2955.3,2954.1,0.15094155]
[1769309999159,4.31628635,2955.2,2954.1,0.15094155]
[1769309999365,0.77921364,2955.4,2954.1,0.15094155]
[1769309999563,4.31624732,2955.3,2954.1,0.15094155]
[1769309999761,4.31624732,2955.2,2954.1,0.15094155]
[1769309999965,0.77921364,2955.4,2954.1,0.15094155]
[1769310000265,4.31629598,2955.3,2954.1,0.15094155]
[1769310000465,4.31629598,2955.2,2954.1,0.15094155]
[1769310000765,0.77921364,2955.4,2954.1,0.15094155]
[1769310000965,4.31629995,2955.3,2954.1,0.15094155]
[1769310001166,4.31629995,2955.2,2954.1,0.15094155]
[1769310001360,0.77921364,2955.4,2954.1,0.15094155]
[1769310001563,4.31624258,2955.3,2954.1,0.15094155]
[1769310001761,4.31624258,2955.2,2954.1,0.15094155]
[1769310001956,0.77921364,2955.4,2954.2,0.15058039]
[1769310002167,4.31624398,2955.3,2954.2,0.15058039]
[1769310002362,10.82659593,2956.5,2954.8,0.15058039]
[1769310002569,4.3163355,2956.1,2955.0,0.15058039]
[1769310002762,4.3163355,2956.0,2955.0,0.15058039]
[1769310002960,4.3163355,2955.9,2955.0,0.15058039]
[1769310003166,4.3163355,2955.8,2955.0,0.15058039]
[1769310003367,0.77921364,2956.1,2955.0,0.15058039]
[1769310003568,4.31228372,2956.0,2955.0,0.15058039]
[1769310003768,0.77921364,2956.1,2955.0,0.15058039]
[1769310004068,4.31227152,2956.0,2955.0,0.15058039]
[1769310004266,0.77921364,2956.1,2955.0,0.15058039]
[1769310004469,4.31012815,2956.0,2955.0,0.15058039]
[1769310004672,0.77921364,2956.1,2955.0,0.15058039]
[1769310004871,4.31013103,2956.0,2955.0,0.15058039]
[1769310005162,0.77921364,2956.1,2955.0,0.15058039]
[1769310005368,4.3041083,2956.0,2955.0,0.15058039]
[1769310005568,0.77921364,2956.1,2955.0,0.15058039]
[1769310005769,4.3026894,2956.0,2955.0,0.15058039]
[1769310005971,0.77921364,2956.1,2955.0,0.15058039]
[1769310006164,4.30271215,2956.0,2955.0,0.15058039]
[1769310006365,0.77921364,2956.1,2955.0,0.15058039]
[1769310008078,0.77921364,2955.9,2955.0,0.15058039]
[1769310009271,0.77921364,2955.9,2954.7,0.15054451]
[1769310010579,0.77921364,2955.9,2954.7,0.92975815]
[1769310010776,0.77921364,2955.9,2954.8,0.15041349]